bitfinex-derivatives/quotes_BTCF0:USTF0_20260214
["timestamp","ask_amount","ask_price","bid_price","bid_amount"]
[1771065304399,0.01436,69675.0,69670.0,0.014361]
[1771065304591,0.01436,69674.0,69670.0,0.014361]
[1771065304996,0.02872,69675.0,69670.0,0.014361]
[1771065305195,0.01436,69674.0,69670.0,0.014361]
[1771065305403,0.02872,69675.0,69670.0,0.014361]
[1771065305691,0.00019096,69675.0,69670.0,0.014361]
[1771065305891,0.01436,69675.0,69670.0,0.014361]
[1771065306499,0.01436,69673.0,69668.0,0.014361]
[1771065307102,0.01436,69672.0,69668.0,0.014361]
[1771065307304,0.01436,69675.0,69667.0,0.0959165]
[1771065307305,0.014361,69670.0,69667.0,0.0959165]
[1771065307501,0.014361,69669.0,69667.0,0.01436]
[1771065308101,0.014361,69667.0,69663.0,0.014362]
[1771065308301,0.014361,69667.0,69664.0,0.01436]
[1771065308699,0.014361,69672.0,69664.0,0.09591765]
[1771065309100,0.014361,69668.0,69664.0,0.01436]
[1771065309295,0.014361,69672.0,69664.0,0.01436]
[1771065309296,0.014361,69669.0,69664.0,0.01436]
[1771065309495,0.014361,69670.0,69664.0,0.01436]
[1771065309698,0.014361,69672.0,69666.0,0.014362]
[1771065309900,0.014361,69672.0,69667.0,0.01436]
[1771065312006,0.014361,69672.0,69667.0,0.028721]
[1771065312999,0.02872,69674.0,69668.0,0.014361]
[1771065313404,0.01436,69674.0,69669.0,0.014361]
[1771065313599,0.01436,69674.0,69667.0,0.028721]
[1771065313600,0.01436,69674.0,69668.0,0.014361]
[1771065313807,0.01436,69675.0,69672.0,0.01436]
[1771065314009,0.01436,69675.0,69671.0,0.014361]
[1771065316510,0.02872,69675.0,69671.0,0.014361]
[1771065316905,0.01436,69675.0,69671.0,0.014361]
[1771065317105,0.02872,69676.0,69671.0,0.014361]
[1771065317506,0.014359,69677.0,69671.0,0.014361]
[1771065317507,0.01436,69677.0,69674.0,0.01436]
[1771065317703,0.028719,69677.0,69673.0,0.01436]
[1771065318008,0.01436,69677.0,69672.0,0.01436]
[1771065318207,0.028719,69677.0,69672.0,0.01436]
[1771065318509,0.01436,69677.0,69674.0,0.01436]
[1771065318902,0.01436,69676.0,69672.0,0.01436]
[1771065319109,0.01436,69677.0,69673.0,0.01436]
[1771065319406,0.014359,69680.0,69675.0,0.01436]
[1771065319712,0.14364,69698.0,69681.0,0.08188771]
[1771065320005,0.028713,69691.0,69685.0,0.014358]
[1771065320210,0.014356,69691.0,69686.0,0.01436]
[1771065320426,0.014355,69698.0,69687.0,0.014357]
[1771065320613,0.014356,69692.0,69687.0,0.08188771]
[1771065320806,0.014356,69691.0,69687.0,0.08188771]
[1771065321006,0.014356,69692.0,69687.0,0.08188771]
[1771065321707,0.014356,69691.0,69687.0,0.08188771]
[1771065322112,0.014356,69694.0,69687.0,0.08188771]
[1771065322314,0.014355,69696.0,69689.0,0.08001461]
[1771065322513,0.014356,69694.0,69689.0,0.09437461]
[1771065322714,0.014356,69692.0,69689.0,0.09437461]
[1771065323212,0.014355,69696.0,69689.0,0.09437461]
[1771065323811,0.014356,69692.0,69689.0,0.09437461]
[1771065324005,0.014355,69696.0,69689.0,0.09437461]
[1771065324212,0.014356,69694.0,69689.0,0.09437461]
[1771065324407,0.01436,69699.0,69690.0,0.0913646]
[1771065324611,0.014356,69694.0,69690.0,0.0770076]
[1771065324813,0.028712,69694.0,69690.0,0.0770076]
[1771065325115,0.014357,69688.0,69685.0,0.1436]
[1771065325412,0.014357,69688.0,69686.0,0.01436]
[1771065327410,0.014356,69692.0,69686.0,0.01436]
[1771065327613,0.014357,69691.0,69686.0,0.01436]
[1771065329226,0.014356,69693.0,69687.0,0.014357]
[1771065329722,0.014355,69698.0,69688.0,0.014357]
[1771065329922,0.014356,69693.0,69689.0,0.01436]
[1771065332523,0.014356,69694.0,69689.0,0.01436]
[1771065333129,0.014356,69694.0,69689.0,0.028717]
[1771065333425,0.014356,69693.0,69689.0,0.01436]
[1771065333624,0.014356,69692.0,69689.0,0.01436]
[1771065333814,0.014356,69694.0,69689.0,0.01436]
[1771065334625,0.014356,69693.0,69689.0,0.01436]
[1771065335324,0.014357,69690.0,69689.0,0.01436]
[1771065336032,0.014356,69691.0,69689.0,0.01436]
[1771065336337,0.014357,69690.0,69689.0,0.01436]
[1771065337928,0.01436,69698.0,69690.0,0.08965838]
[1771065338128,0.01436,69698.0,69689.0,0.01436]
[1771065338129,0.014356,69694.0,69689.0,0.01436]
[1771065338333,0.014356,69696.0,69689.0,0.01436]
[1771065338334,0.014356,69695.0,69689.0,0.01436]
[1771065339034,0.014356,69693.0,69689.0,0.01436]
[1771065339232,0.014356,69692.0,69689.0,0.01436]
[1771065339435,0.014357,69690.0,69689.0,0.01436]
[1771065339637,0.014356,69693.0,69689.0,0.01436]
[1771065339839,0.014357,69691.0,69689.0,0.01436]
[1771065340042,0.014356,69692.0,69686.0,0.014357]
[1771065340337,0.014356,69692.0,69687.0,0.028717]
[1771065340734,0.01436,69699.0,69687.0,0.01436]
[1771065340929,0.014356,69692.0,69687.0,0.09550865]
[1771065342642,0.014357,69690.0,69687.0,0.09550865]
[1771065343839,0.014357,69690.0,69687.0,0.01436]
[1771065346942,0.014355,69697.0,69689.0,0.014357]
[1771065347238,0.014356,69694.0,69690.0,0.01436]
[1771065349338,0.028712,69694.0,69690.0,0.01436]
[1771065349743,0.014356,69692.0,69690.0,0.01436]
[1771065350144,0.014356,69691.0,69690.0,0.01436]
[1771065350651,0.014356,69693.0,69687.0,0.014357]
[1771065351043,0.014356,69692.0,69688.0,0.01436]
[1771065353252,0.014356,69693.0,69688.0,0.01436]
[1771065355052,0.014356,69695.0,69688.0,0.09550865]
[1771065355552,0.014356,69695.0,69689.0,0.014357]
[1771065355846,0.014356,69695.0,69688.0,0.10986565]
[1771065356551,0.014356,69693.0,69688.0,0.10986565]
[1771065359744,0.014356,69694.0,69689.0,0.014357]
[1771065360153,0.014356,69695.0,69689.0,0.014357]
[1771065360353,0.028712,69695.0,69689.0,0.014357]
[1771065360655,0.014356,69694.0,69689.0,0.014357]
[1771065361648,0.01436,69698.0,69693.0,0.014356]
[1771065361853,0.028715,69698.0,69693.0,0.014356]
[1771065362253,0.014355,69697.0,69692.0,0.014356]
[1771065362554,0.01436,69698.0,69692.0,0.028716]
[1771065362854,0.014354,69701.0,69695.0,0.014356]
[1771065363056,0.014355,69700.0,69695.0,0.028711]
[1771065363350,0.014355,69700.0,69694.0,0.01436]
[1771065363351,0.014356,69692.0,69689.0,0.1436]
[1771065363555,0.014357,69689.0,69686.0,0.1436]
[1771065363943,0.014357,69689.0,69687.0,0.01436]
[1771065364148,0.014356,69694.0,69687.0,0.01436]
[1771065364343,0.014356,69693.0,69687.0,0.01436]
[1771065364545,0.014357,69690.0,69687.0,0.01436]
[1771065364748,0.014357,69689.0,69687.0,0.01436]
[1771065365657,0.014356,69691.0,69687.0,0.01436]
[1771065366449,0.014357,69690.0,69687.0,0.01436]
[1771065366649,0.014357,69688.0,69687.0,0.01436]
[1771065366850,0.014357,69690.0,69687.0,0.01436]
[1771065367457,0.014357,69689.0,69687.0,0.01436]
[1771065367655,0.014357,69688.0,69687.0,0.01436]
[1771065367854,0.014357,69689.0,69687.0,0.01436]
[1771065368356,0.014357,69688.0,69687.0,0.01436]
[1771065368657,0.014357,69689.0,69687.0,0.01436]
[1771065369560,0.014357,69690.0,69687.0,0.01436]
[1771065371162,0.014356,69692.0,69687.0,0.028717]
[1771065371362,0.014356,69692.0,69687.0,0.01436]
[1771065371661,0.014356,69692.0,69686.0,0.014357]
[1771065371859,0.014356,69695.0,69689.0,0.014357]
[1771065372057,0.028711,69696.0,69690.0,0.014357]
[1771065372257,0.014356,69695.0,69690.0,0.028717]
[1771065372457,0.014355,69696.0,69691.0,0.014356]
[1771065372760,0.01436,69699.0,69691.0,0.09087747]
[1771065373060,0.01436,69699.0,69695.0,0.014356]
[1771065373365,0.028714,69701.0,69693.0,0.09540849]
[1771065373758,0.014354,69704.0,69695.0,0.014356]
[1771065374059,0.014355,69700.0,69696.0,0.014355]
[1771065374362,0.014354,69701.0,69696.0,0.014355]
[1771065374958,0.014354,69702.0,69697.0,0.014355]
[1771065375153,0.028714,69703.0,69696.0,0.014355]
[1771065375361,0.028714,69703.0,69698.0,0.014355]
[1771065375660,0.014354,69705.0,69696.0,0.014355]
[1771065375661,0.014352,69715.0,69700.0,0.014355]
[1771065375867,0.014354,69706.0,69700.0,0.07832018]
[1771065376062,0.014354,69704.0,69698.0,0.014355]
[1771065376268,0.014354,69702.0,69697.0,0.014355]
[1771065376662,0.014354,69702.0,69698.0,0.014355]
[1771065376863,0.014354,69702.0,69699.0,0.01436]
[1771065378866,0.014354,69701.0,69699.0,0.01436]
[1771065379768,0.014354,69705.0,69699.0,0.01436]
[1771065380366,0.02871,69701.0,69699.0,0.01436]
[1771065380667,0.014355,69701.0,69699.0,0.01436]
[1771065383466,0.014354,69702.0,69697.0,0.01436]
[1771065383667,0.014354,69701.0,69697.0,0.01436]
[1771065383970,0.014354,69704.0,69697.0,0.10523647]
[1771065384769,0.014354,69701.0,69697.0,0.01436]
[1771065386864,0.014354,69702.0,69697.0,0.01436]
[1771065386865,0.014355,69700.0,69697.0,0.01436]
[1771065387074,0.014355,69699.0,69697.0,0.01436]
[1771065389071,0.014355,69700.0,69697.0,0.01436]
[1771065390062,0.014355,69699.0,69697.0,0.01436]
[1771065390268,0.01436,69703.0,69695.0,0.01436]
[1771065390467,0.014356,69694.0,69689.0,0.014357]
[1771065390669,0.014356,69695.0,69690.0,0.01436]
[1771065391872,0.014356,69696.0,69690.0,0.028717]
[1771065392271,0.014356,69695.0,69690.0,0.028717]
[1771065392473,0.014356,69695.0,69690.0,0.01436]
[1771065392672,0.014356,69695.0,69690.0,0.028717]
[1771065393176,0.014356,69696.0,69690.0,0.028717]
[1771065393570,0.01436,69702.0,69699.0,0.08850204]
[1771065393769,0.014353,69709.0,69705.0,0.014354]
[1771065393770,0.01436,69709.0,69705.0,0.014354]
[1771065393970,0.014352,69715.0,69704.0,0.07634473]
[1771065393971,0.014353,69708.0,69704.0,0.07634473]
[1771065394269,0.014354,69706.0,69702.0,0.01436]
[1771065394670,0.014354,69705.0,69702.0,0.01436]
[1771065394868,0.01436,69710.0,69704.0,0.014354]
[1771065395073,0.014353,69706.0,69703.0,0.01436]
[1771065395270,0.014353,69707.0,69703.0,0.01436]
[1771065395775,0.01436,69711.0,69703.0,0.01436]
[1771065396375,0.014353,69708.0,69703.0,0.01436]
[1771065397377,0.014353,69707.0,69703.0,0.01436]
[1771065397879,0.014353,69708.0,69703.0,0.028714]
[1771065398777,0.014353,69708.0,69704.0,0.014354]
[1771065400481,0.014353,69710.0,69704.0,0.014354]
[1771065400676,0.01436,69711.0,69704.0,0.014354]
[1771065400876,0.014353,69709.0,69704.0,0.014354]
[1771065401176,0.014353,69706.0,69703.0,0.01436]
[1771065401577,0.09528446,69712.0,69703.0,0.01436]
[1771065401875,0.014354,69704.0,69702.0,0.01436]
[1771065402578,0.014354,69705.0,69702.0,0.01436]
[1771065403974,0.014354,69704.0,69686.0,0.07701711]
[1771065404280,0.014355,69696.0,69691.0,0.014356]
[1771065404468,0.014355,69696.0,69692.0,0.01436]
[1771065405174,0.08093246,69693.0,69672.0,0.07701711]
[1771065405377,0.014359,69680.0,69675.0,0.01436]
[1771065406069,0.014359,69680.0,69676.0,0.02876]
[1771065406276,0.014359,69680.0,69676.0,0.0144]
[1771065406680,0.014359,69680.0,69676.0,0.02876]
[1771065407074,0.014359,69681.0,69677.0,0.0144]
[1771065408081,0.014358,69682.0,69677.0,0.028759]
[1771065408582,0.028758,69685.0,69677.0,0.028759]
[1771065408983,0.014358,69682.0,69677.0,0.028759]
[1771065409481,0.014358,69683.0,69677.0,0.028759]
[1771065409685,0.014358,69682.0,69677.0,0.028759]
[1771065409880,0.014359,69681.0,69677.0,0.0144]
[1771065410683,0.014358,69682.0,69677.0,0.0144]
[1771065411584,0.014358,69682.0,69677.0,0.028759]
[1771065411980,0.014358,69683.0,69677.0,0.028759]
[1771065411981,0.028758,69685.0,69677.0,0.028759]
[1771065412180,0.0144,69685.0,69682.0,0.014358]
[1771065412385,8.396e-05,69686.0,69682.0,0.014358]
[1771065412585,0.0144,69686.0,69682.0,0.014358]
[1771065413181,0.0144,69686.0,69680.0,0.014359]
[1771065413585,0.028758,69686.0,69680.0,0.028718]
[1771065413984,0.014357,69688.0,69681.0,0.014358]
[1771065414199,0.014357,69689.0,69682.0,0.014358]
[1771065414200,0.014357,69687.0,69682.0,0.014358]
[1771065415299,0.028757,69687.0,69682.0,0.014358]
[1771065415902,0.043114,69687.0,69682.0,0.014358]
[1771065416201,0.043114,69687.0,69680.0,0.014359]
[1771065416202,0.014357,69686.0,69681.0,0.014358]
[1771065417701,0.014358,69685.0,69681.0,0.014358]
[1771065419697,0.014358,69685.0,69680.0,0.014359]
[1771065419898,0.028757,69687.0,69669.0,0.014361]
[1771065419899,0.014359,69678.0,69669.0,0.014361]
[1771065420099,0.0144,69687.0,69667.0,0.07701711]
[1771065420100,0.01436,69676.0,69674.0,0.0144]
[1771065420501,0.02872,69676.0,69674.0,0.0144]
[1771065420806,0.01436,69676.0,69674.0,0.0144]
[1771065421007,0.01436,69676.0,69671.0,0.01436]
[1771065421203,0.01436,69676.0,69672.0,0.0144]
[1771065421403,0.014359,69678.0,69673.0,0.0144]
[1771065421705,0.014359,69679.0,69674.0,0.01436]
[1771065421894,0.028718,69679.0,69674.0,0.01436]
[1771065422706,0.014359,69678.0,69673.0,0.02876]
[1771065428108,0.014359,69679.0,69673.0,0.02876]
[1771065430410,0.014359,69679.0,69674.0,0.01436]
[1771065431610,0.01436,69674.0,69669.0,0.014361]
[1771065432703,0.01436,69675.0,69670.0,0.014361]
[1771065432904,0.01436,69674.0,69671.0,0.0144]
[1771065433099,0.01436,69675.0,69671.0,0.0144]
[1771065434315,0.01436,69675.0,69670.0,0.0144]
[1771065434708,0.01436,69675.0,69670.0,0.028761]
[1771065436318,0.01436,69675.0,69670.0,0.043122]
[1771065437520,0.01436,69675.0,69671.0,0.014361]
[1771065439515,0.02872,69675.0,69670.0,0.028761]
[1771065439819,0.01436,69674.0,69670.0,0.028761]
[1771065441717,0.01436,69674.0,69670.0,0.0144]
[1771065443321,0.01436,69675.0,69670.0,0.0144]
[1771065443526,0.028759,69679.0,69674.0,0.01436]
[1771065443825,0.01436,69678.0,69674.0,0.02872]
[1771065444424,0.01436,69678.0,69675.0,0.01436]
[1771065444624,0.02872,69679.0,69674.0,0.01436]
[1771065444927,0.043079,69679.0,69674.0,0.01436]
[1771065445229,0.014361,69679.0,69675.0,0.01436]
[1771065445527,0.014355,69698.0,69679.0,0.014359]
[1771065445719,0.014358,69684.0,69679.0,0.014359]
[1771065445919,0.01427896,69684.0,69679.0,0.014359]
[1771065446423,0.02863696,69684.0,69679.0,0.028718]
[1771065446923,0.02863696,69684.0,69679.0,0.014359]
[1771065447424,0.02863696,69684.0,69679.0,0.028718]
[1771065447825,0.01427896,69684.0,69680.0,0.014359]
[1771065449529,0.02663696,69684.0,69679.0,0.014359]
[1771065450024,0.01436,69685.0,69679.0,0.014359]
[1771065450430,0.01436,69685.0,69679.0,0.0962767]
[1771065450629,0.01436,69686.0,69681.0,0.014358]
[1771065451330,0.014358,69685.0,69681.0,0.014358]
[1771065451828,0.014358,69684.0,69680.0,0.014359]
[1771065454130,0.01436,69686.0,69681.0,0.014358]
[1771065454429,0.028718,69686.0,69681.0,0.014358]
[1771065455025,0.117389,69691.0,69681.0,0.014358]
[1771065455221,0.028717,69690.0,69685.0,0.014358]
[1771065456131,0.014357,69689.0,69685.0,0.014358]
[1771065457228,0.028714,69689.0,69684.0,0.014358]
[1771065457530,0.014357,69689.0,69684.0,0.014358]
[1771065459031,0.014356,69695.0,69685.0,0.014357]
[1771065459233,0.014355,69699.0,69692.0,0.07963625]
[1771065459431,0.028715,69700.0,69695.0,0.09399225]
[1771065459934,0.01436,69701.0,69696.0,0.014355]
[1771065460328,0.028708,69702.0,69697.0,0.014355]
[1771065460521,0.00969527,69702.0,69697.0,0.014355]
[1771065460725,0.1376,69706.0,69697.0,0.07608848]
[1771065460926,0.014354,69705.0,69699.0,0.014355]
[1771065461135,0.014355,69696.0,69695.0,0.01436]
[1771065461333,0.014356,69694.0,69688.0,0.07608848]
[1771065461534,0.014356,69696.0,69691.0,0.014356]
[1771065461739,0.014356,69695.0,69691.0,0.0144]
[1771065462036,0.014356,69695.0,69689.0,0.014357]
[1771065462232,0.014356,69695.0,69690.0,0.0144]
[1771065462437,0.014356,69693.0,69690.0,0.0144]
[1771065463229,0.014356,69694.0,69690.0,0.0144]
[1771065465227,0.014356,69693.0,69690.0,0.0144]
[1771065468639,0.014356,69694.0,69690.0,0.0144]
[1771065469938,0.014356,69693.0,69690.0,0.0144]
[1771065470332,0.014356,69692.0,69690.0,0.0144]
[1771065470534,0.014356,69694.0,69690.0,0.0144]
[1771065472643,0.014356,69694.0,69690.0,0.028757]
[1771065473737,0.014356,69694.0,69690.0,0.0144]
[1771065473939,0.014356,69693.0,69690.0,0.0144]
[1771065474743,0.014356,69692.0,69690.0,0.0144]
[1771065474940,0.014357,69690.0,69687.0,0.00596743]
[1771065475139,0.014356,69693.0,69681.0,0.1436]
[1771065475346,0.014358,69685.0,69679.0,0.014359]
[1771065475546,0.028758,69685.0,69680.0,0.014359]
[1771065475741,0.0144,69685.0,69681.0,0.014358]
[1771065475942,0.0144,69685.0,69680.0,0.014359]
[1771065476544,0.014358,69684.0,69679.0,0.014359]
[1771065476738,0.028758,69685.0,69680.0,0.014359]
[1771065476933,0.0144,69685.0,69681.0,0.014358]
[1771065477646,0.04134351,69707.0,69687.0,0.014357]
[1771065477843,0.0144,69694.0,69687.0,0.014357]
[1771065478244,0.014356,69692.0,69687.0,0.014357]
[1771065480046,0.014356,69693.0,69688.0,0.014357]
[1771065480248,0.028756,69695.0,69688.0,0.014357]
[1771065480748,0.028756,69695.0,69686.0,0.09048848]
[1771065480749,0.014356,69692.0,69687.0,0.014357]
[1771065480951,0.014356,69693.0,69687.0,0.014357]
[1771065481144,0.028756,69695.0,69687.0,0.014357]
[1771065481344,0.014357,69691.0,69686.0,0.0144]
[1771065481652,0.014357,69689.0,69686.0,0.0144]
[1771065483154,0.014357,69687.0,69682.0,0.028758]
[1771065484347,0.014357,69689.0,69684.0,0.014358]
[1771065485153,0.014357,69689.0,69685.0,0.028758]
[1771065485355,0.014357,69689.0,69685.0,0.0144]
[1771065486662,0.028712,69693.0,69688.0,0.014357]
[1771065486962,0.014356,69693.0,69688.0,0.014357]
[1771065487161,0.014356,69693.0,69689.0,0.0144]
[1771065487959,0.014356,69695.0,69689.0,0.028757]
[1771065488258,0.014356,69693.0,69689.0,0.0144]
[1771065488463,0.014356,69692.0,69689.0,0.0144]
[1771065488658,0.014356,69691.0,69689.0,0.0144]
[1771065489560,0.014356,69692.0,69689.0,0.0144]
[1771065489962,0.028712,69692.0,69689.0,0.0144]
[1771065490462,0.014356,69692.0,69689.0,0.0144]
[1771065490663,0.028712,69692.0,69689.0,0.0144]
[1771065491167,0.014356,69692.0,69689.0,0.0144]
[1771065492465,0.014356,69694.0,69689.0,0.0144]
[1771065492767,0.014356,69693.0,69689.0,0.0144]
[1771065493366,0.014356,69692.0,69689.0,0.0144]
[1771065493756,0.009712,69693.0,69689.0,0.0144]
[1771065494467,0.0144,69697.0,69689.0,0.0144]
[1771065494769,0.014356,69692.0,69689.0,0.0144]
[1771065495169,0.014356,69691.0,69689.0,0.0144]
[1771065495666,0.014356,69694.0,69689.0,0.0144]
[1771065496365,0.014356,69692.0,69689.0,0.0144]
[1771065497372,0.028712,69692.0,69689.0,0.0144]
[1771065498162,0.014356,69695.0,69689.0,0.0144]
[1771065499671,0.014356,69691.0,69689.0,0.0144]
[1771065499872,0.014356,69693.0,69689.0,0.0144]
[1771065500070,0.014356,69691.0,69689.0,0.0144]
[1771065500260,0.01404396,69693.0,69689.0,0.0144]
[1771065500670,0.014356,69691.0,69689.0,0.0144]
[1771065500871,0.01404396,69693.0,69689.0,0.0144]
[1771065501770,0.014356,69691.0,69689.0,0.0144]
[1771065502167,0.01404396,69693.0,69689.0,0.0144]
[1771065503072,0.014357,69691.0,69689.0,0.0144]
[1771065504668,0.028714,69691.0,69689.0,0.0144]
[1771065505175,0.014357,69690.0,69689.0,0.0144]
[1771065505364,0.014357,69690.0,69689.0,0.01436]
[1771065509569,0.014356,69693.0,69689.0,0.01436]
[1771065509774,0.0144,69697.0,69689.0,0.01436]
[1771065511174,0.014357,69691.0,69689.0,0.01436]
[1771065511385,0.014357,69690.0,69689.0,0.01436]
[1771065513265,0.014357,69691.0,69689.0,0.01436]
[1771065513467,0.014357,69690.0,69689.0,0.01436]
[1771065514476,0.014356,69691.0,69689.0,0.01436]
[1771065518980,0.014356,69691.0,69689.0,0.01436]
[1771065520577,0.014356,69693.0,69689.0,0.01436]
[1771065521379,0.014357,69691.0,69689.0,0.01436]
[1771065521784,0.014357,69691.0,69689.0,0.01436]
[1771065523782,0.014356,69694.0,69689.0,0.01436]
[1771065524082,0.014357,69691.0,69689.0,0.01436]
[1771065524577,0.014357,69690.0,69689.0,0.01436]
[1771065526381,0.014357,69691.0,69689.0,0.01436]
[1771065526778,0.014356,69693.0,69689.0,0.01436]
[1771065526986,0.014357,69691.0,69689.0,0.01436]
[1771065527483,0.010357,69691.0,69689.0,0.01436]
[1771065527678,0.008357,69691.0,69689.0,0.01436]
[1771065528382,0.014356,69694.0,69689.0,0.01436]
[1771065528681,0.014357,69691.0,69689.0,0.01436]
[1771065529985,0.010357,69691.0,69689.0,0.01436]
[1771065530382,0.014356,69693.0,69689.0,0.01436]
[1771065530581,0.014357,69691.0,69689.0,0.01436]
[1771065531377,0.01436,69697.0,69689.0,0.01436]
[1771065531684,0.014357,69691.0,69689.0,0.01436]
[1771065533388,0.028714,69691.0,69689.0,0.01436]
[1771065533589,0.014357,69691.0,69689.0,0.01436]
[1771065533786,0.028714,69691.0,69689.0,0.01436]
[1771065534200,0.014357,69691.0,69689.0,0.01436]
[1771065534586,0.028714,69691.0,69689.0,0.01436]
[1771065538188,0.014357,69690.0,69689.0,0.01436]
[1771065543088,0.014357,69691.0,69689.0,0.01436]
[1771065543692,0.014357,69690.0,69689.0,0.01436]
[1771065544396,0.014357,69691.0,69689.0,0.01436]
[1771065544892,0.028714,69691.0,69689.0,0.01436]
[1771065545192,0.014357,69691.0,69689.0,0.01436]
[1771065545495,0.014357,69690.0,69688.0,0.01436]
[1771065546094,0.014357,69689.0,69688.0,0.01436]
[1771065546295,0.014357,69689.0,69679.0,0.07839846]
[1771065546296,0.07953623,69686.0,69679.0,0.01436]
[1771065546487,0.014359,69680.0,69677.0,0.01436]
[1771065546885,0.014358,69684.0,69677.0,0.01436]
[1771065547092,0.01436,69676.0,69675.0,0.01436]
[1771065547893,0.01436,69676.0,69669.0,0.1436]
[1771065547894,0.014359,69681.0,69669.0,0.1436]
[1771065548189,0.01436,69675.0,69670.0,0.028721]
[1771065548393,0.01436,69674.0,69670.0,0.01436]
[1771065548886,0.01436,69675.0,69671.0,0.01436]
[1771065549387,0.01436,69676.0,69671.0,0.01436]
[1771065549590,0.01436,69675.0,69671.0,0.028721]
[1771065549894,0.01436,69676.0,69671.0,0.02872]
[1771065550394,0.028719,69678.0,69671.0,0.02872]
[1771065550395,0.01436,69675.0,69671.0,0.01436]
[1771065551197,0.01436,69676.0,69671.0,0.02872]
[1771065551389,0.01436,69675.0,69671.0,0.01436]
[1771065551992,0.01436,69676.0,69666.0,0.014361]
[1771065552297,0.01436,69672.0,69667.0,0.028721]
[1771065554097,0.01436,69673.0,69668.0,0.014361]
[1771065555594,0.01436,69673.0,69669.0,0.014361]
[1771065556800,0.01436,69674.0,69669.0,0.014361]
[1771065559800,0.014359,69677.0,69669.0,0.014361]
[1771065559999,0.01436,69675.0,69669.0,0.014361]
[1771065560800,0.01436,69676.0,69670.0,0.014361]
[1771065561396,0.01436,69675.0,69670.0,0.014361]
[1771065561597,0.01436,69675.0,69669.0,0.014361]
[1771065562200,0.014359,69680.0,69668.0,0.014361]
[1771065562201,0.014359,69677.0,69672.0,0.01436]
[1771065562803,0.028719,69677.0,69671.0,0.014361]
[1771065563801,0.01436,69676.0,69671.0,0.014361]
[1771065570107,0.01436,69673.0,69668.0,0.014361]
[1771065571012,0.01436,69673.0,69668.0,0.028722]
[1771065572113,0.01436,69674.0,69669.0,0.014361]
[1771065576918,0.01436,69675.0,69670.0,0.014361]
[1771065578821,0.01436,69675.0,69669.0,0.014361]
[1771065579420,0.01436,69675.0,69670.0,0.014361]
[1771065586517,0.01436,69675.0,69668.0,0.014361]
[1771065587227,0.01436,69676.0,69670.0,0.014361]
[1771065587722,0.01436,69676.0,69670.0,0.028722]
[1771065587927,0.01436,69676.0,69670.0,0.014361]
[1771065588322,0.01436,69676.0,69670.0,0.028722]
[1771065588526,0.01436,69676.0,69670.0,0.014361]
[1771065588728,0.01436,69676.0,69670.0,0.028722]
[1771065589936,0.01436,69676.0,69671.0,0.014361]
[1771065590228,0.028719,69677.0,69671.0,0.014361]
[1771065592234,0.01436,69676.0,69666.0,0.014362]
[1771065592534,0.01436,69673.0,69667.0,0.014361]
[1771065592732,0.01436,69673.0,69667.0,0.028721]
[1771065593231,0.07719513,69680.0,69667.0,0.028721]
[1771065593232,0.01436,69686.0,69668.0,0.07823983]
[1771065593431,0.014359,69679.0,69672.0,0.01436]
[1771065593631,0.014359,69679.0,69673.0,0.01436]
[1771065593826,0.028719,69679.0,69673.0,0.01436]
[1771065605746,0.028719,69679.0,69667.0,0.01436]
[1771065605747,0.01436,69675.0,69669.0,0.014361]
[1771065605942,0.01436,69674.0,69668.0,0.014361]
[1771065606752,0.01436,69674.0,69668.0,0.028722]
[1771065608250,0.01436,69674.0,69668.0,0.014361]
[1771065608741,0.01436,69674.0,69668.0,0.028722]
[1771065608948,0.01436,69674.0,69669.0,0.014361]
[1771065609248,0.01436,69675.0,69669.0,0.014361]
[1771065609549,0.02872,69676.0,69635.0,0.85691981]
[1771065609550,0.014361,69669.0,69662.0,0.028722]
[1771065609753,0.014361,69669.0,69663.0,0.014362]
[1771065609949,0.014362,69667.0,69662.0,0.01436]
[1771065610744,0.014361,69669.0,69663.0,0.014362]
[1771065611148,0.014361,69669.0,69662.0,0.028722]
[1771065611149,0.014361,69668.0,69662.0,0.028722]
[1771065612154,0.014361,69669.0,69663.0,0.014362]
[1771065612957,0.014361,69669.0,69663.0,0.028724]
[1771065613254,0.014361,69668.0,69663.0,0.014362]
[1771065613554,0.014361,69668.0,69662.0,0.028722]
[1771065614155,0.028723,69667.0,69662.0,0.01436]
[1771065614456,0.014361,69668.0,69662.0,0.028722]
[1771065614853,0.028722,69668.0,69662.0,0.028722]
[1771065615053,0.014361,69668.0,69662.0,0.028722]
[1771065615253,0.014361,69668.0,69663.0,0.014362]
[1771065615855,0.014361,69668.0,69662.0,0.028722]
[1771065616857,0.028722,69668.0,69662.0,0.028722]
[1771065617060,0.014361,69668.0,69662.0,0.028722]
[1771065618257,0.014362,69667.0,69662.0,0.028722]
[1771065619458,0.014361,69669.0,69662.0,0.028722]
[1771065619654,0.014361,69668.0,69662.0,0.043084]
[1771065620061,0.014361,69668.0,69662.0,0.028722]
[1771065620572,0.014362,69666.0,69662.0,0.01436]
[1771065621068,0.014362,69665.0,69662.0,0.01436]
[1771065621374,0.014362,69663.0,69657.0,0.014363]
[1771065621572,0.014362,69663.0,69657.0,0.028723]
[1771065621762,0.014362,69662.0,69657.0,0.028723]
[1771065621963,0.014362,69662.0,69657.0,0.01436]
[1771065622172,0.028722,69663.0,69657.0,0.014363]
[1771065622373,0.043084,69663.0,69657.0,0.014363]
[1771065622569,0.028722,69663.0,69657.0,0.014363]
[1771065622770,0.028722,69663.0,69657.0,0.028726]